bitfinex/quotes_BTCUSD_20251224
["timestamp","ask_amount","ask_price","bid_price","bid_amount"]
[1766572120367,0.11944413,87079.0,87070.0,0.05742452]
[1766572120567,0.01148342,87082.0,87071.0,0.05742431]
[1766572120772,0.000549,87071.0,87068.0,0.03448277]
[1766572120977,0.01148422,87076.0,87068.0,0.03448277]
[1766572121203,0.06890381,87078.0,87068.0,0.03448277]
[1766572121638,0.06890426,87079.0,87068.0,0.03448277]
[1766572121934,0.06890426,87079.0,87068.0,0.04596804]
[1766572122182,0.01148395,87078.0,87068.0,0.03448277]
[1766572123025,0.06890378,87078.0,87068.0,0.03448277]
[1766572123227,0.01148395,87078.0,87069.0,0.01152]
[1766572124495,0.12009,87080.0,87070.0,0.06891007]
[1766572125048,0.12009,87080.0,87070.0,0.01148501]
[1766572125246,0.12009,87080.0,87071.0,0.06890924]
[1766572125469,0.12009,87080.0,87070.0,0.06890996]
[1766572125689,0.12009,87080.0,87071.0,0.01148488]
[1766572125891,0.01152,87083.0,87080.0,0.000549]
[1766572126112,0.01152,87083.0,87073.0,0.05742283]
[1766572126316,0.13161,87083.0,87074.0,0.01148448]
[1766572126459,0.14309329,87083.0,87070.0,0.05742505]
[1766572126647,0.01148356,87081.0,87070.0,0.06891006]
[1766572126842,0.12009,87078.0,87068.0,0.03448277]
[1766572127044,0.12009,87078.0,87065.0,0.01152]
[1766572127045,0.12009,87070.0,87065.0,0.01152]
[1766572127271,0.12009,87070.0,87065.0,0.04600277]
[1766572128099,0.13157501,87070.0,87065.0,0.04600277]
[1766572128302,0.12009,87070.0,87065.0,0.01152]
[1766572135943,0.12009,87071.0,87051.0,0.01148751]
[1766572136154,0.12064,87065.0,87058.0,0.01148659]
[1766572136367,0.12009,87065.0,87058.0,0.01148659]
[1766572136570,0.12009,87065.0,87057.0,0.03452672]
[1766572136956,0.12009,87065.0,87057.0,0.09196013]
[1766572137102,0.12009,87065.0,87057.0,0.03452672]
[1766572137340,0.01148501,87070.0,87058.0,0.06891949]
[1766572137548,0.01148501,87070.0,87057.0,0.02304]
[1766572137759,0.05742593,87069.0,87057.0,0.03452672]
[1766572137956,0.06891107,87069.0,87058.0,0.01148659]
[1766572138525,0.1287354,87067.0,87057.0,0.02304]
[1766572138926,0.11725,87067.0,87058.0,0.01148659]
[1766572139056,0.11725,87067.0,87057.0,0.09196021]
[1766572139272,0.11725,87067.0,87058.0,0.01148659]
[1766572139478,0.11725,87067.0,87059.0,0.01148646]
[1766572139675,0.11725,87067.0,87058.0,0.0689192]
[1766572140103,0.11725,87067.0,87059.0,0.0689184]
[1766572140304,0.11725,87066.0,87057.0,0.02304]
[1766572140510,0.01148567,87065.0,87057.0,0.02304]
[1766572141846,0.12873553,87066.0,87057.0,0.02304]
[1766572142023,0.11725,87066.0,87057.0,0.02304]
[1766572142574,0.11725,87066.0,87058.0,0.01148659]
[1766572142744,0.11725,87066.0,87057.0,0.03452672]
[1766572142940,0.11725,87066.0,87057.0,0.02304]
[1766572144669,0.11725,87066.0,87057.0,0.03452672]
[1766572145100,0.11725,87066.0,87057.0,0.02304]
[1766572145622,0.01152,87071.0,87063.0,0.01148593]
[1766572145791,0.12877,87073.0,87063.0,0.0689156]
[1766572146002,0.12877,87073.0,87062.0,0.06891607]
[1766572146223,0.14025461,87073.0,87061.0,0.06891678]
[1766572146420,0.01148488,87071.0,87061.0,0.01148619]
[1766572146603,0.19767826,87073.0,87061.0,0.06891718]
[1766572146798,0.14025461,87073.0,87062.0,0.08043639]
[1766572147024,0.12877,87073.0,87063.0,0.01148593]
[1766572147356,0.14025461,87073.0,87063.0,0.01148593]
[1766572147499,0.11725,87073.0,87063.0,0.06891553]
[1766572147704,0.04041651,87078.0,87064.0,0.00114846]
[1766572147905,0.07486985,87077.0,87063.0,0.06891529]
[1766572148129,0.01152,87078.0,87064.0,0.0114858]
[1766572148322,0.05742203,87075.0,87064.0,0.0114858]
[1766572148664,0.01152,87078.0,87064.0,0.0114858]
[1766572148665,0.05742168,87076.0,87065.0,0.01148567]
[1766572148873,0.01148435,87075.0,87064.0,0.06891468]
[1766572149029,0.01148435,87075.0,87063.0,0.01148593]
[1766572149401,0.0689066,87075.0,87063.0,0.01148593]
[1766572150007,0.0689066,87075.0,87064.0,0.0114858]
[1766572150160,0.01148435,87075.0,87064.0,0.0114858]
[1766572150542,0.12873435,87075.0,87064.0,0.0114858]
[1766572152167,0.34912301,87079.0,87062.0,0.06894915]
[1766572152168,0.03448559,87081.0,87075.0,0.000549]
[1766572152433,0.12873237,87090.0,87078.0,0.01148395]
[1766572152636,0.49468677,87090.0,87077.0,0.05741987]
[1766572152845,0.11725,87087.0,87078.0,0.05741935]
[1766572152998,0.11725,87087.0,87079.0,0.06890282]
[1766572153202,0.11725,87087.0,87078.0,0.01148348]
[1766572153425,0.01148224,87091.0,87078.0,0.06890295]
[1766572153600,0.3659544,87090.0,87080.0,0.01148369]
[1766572153803,0.3659544,87090.0,87081.0,0.01148356]
[1766572154551,0.14244597,87094.0,87083.0,0.01148329]
[1766572154749,0.12873197,87093.0,87082.0,0.01148342]
[1766572154915,0.11725,87093.0,87083.0,0.01148329]
[1766572156098,0.11725,87093.0,87082.0,0.01148342]
[1766572156099,0.12873197,87093.0,87082.0,0.01148342]
[1766572156298,0.11725,87093.0,87084.0,0.01148316]
[1766572156748,0.11725,87093.0,87085.0,0.01148303]
[1766572157335,0.01152,87094.0,87085.0,0.01148303]
[1766572157509,0.12877,87093.0,87085.0,0.01148303]
[1766572157724,0.12877,87093.0,87087.0,1e-08]
[1766572157933,0.12877,87093.0,87085.0,0.01148303]
[1766572157934,0.05741363,87087.0,87086.0,0.05741415]
[1766572158143,0.12877,87093.0,87084.0,0.01148316]
[1766572158369,0.12877,87093.0,87085.0,0.01148303]
[1766572158578,0.12877,87093.0,87084.0,0.01148316]
[1766572158802,0.12877,87093.0,86993.0,0.05769552]
[1766572158803,0.00055,87084.0,87041.0,0.1487]
[1766572159023,0.00055,87084.0,87025.0,1.14909031]
[1766572159024,4.98090653,87092.0,87056.0,0.00019592]
[1766572159025,0.11725,87066.0,87056.0,0.00019592]
[1766572159808,0.11725,87066.0,87056.0,0.01168277]
[1766572160047,0.12873553,87066.0,87056.0,0.00019592]
[1766572161053,0.11725,87066.0,87056.0,0.00019592]
[1766572161935,0.12873553,87066.0,87059.0,0.09]
[1766572162599,0.01148567,87065.0,87059.0,0.09]
[1766572162808,0.0114858,87064.0,87059.0,0.09]
[1766572163010,0.01148606,87062.0,87059.0,0.09]
[1766572163285,0.11725,87063.0,87059.0,0.09]
[1766572163447,0.12873593,87063.0,87059.0,0.09]
[1766572164014,0.11725,87063.0,87059.0,0.09]
[1766572165004,0.01148606,87062.0,87059.0,0.09]
[1766572165153,0.01148567,87065.0,87056.0,0.00019592]
[1766572165354,0.06891934,87059.0,87056.0,9.2e-07]
[1766572165554,0.22972134,87062.0,87056.0,9.2e-07]
[1766572165968,0.01148633,87060.0,87056.0,9.2e-07]
[1766572166194,0.12873646,87059.0,87056.0,9.2e-07]
[1766572166410,0.11725,87059.0,87056.0,9.2e-07]
[1766572166823,0.11725,87059.0,87045.0,0.05744099]
[1766572166824,0.17468327,87058.0,87045.0,0.05744099]
[1766572167033,0.11725,87058.0,87048.0,0.01152]
[1766572167539,0.18616993,87058.0,87048.0,0.01152]
[1766572167725,0.18597566,87058.0,87048.0,0.01152]
[1766572167936,0.01148672,87057.0,87048.0,0.01152]
[1766572168483,0.18597566,87058.0,87048.0,0.01152]
[1766572168484,0.12854259,87058.0,87048.0,0.01152]
[1766572168939,0.18597584,87058.0,87048.0,0.01152]
[1766572169286,0.01148672,87057.0,87048.0,0.01152]
[1766572172004,0.01148685,87056.0,87048.0,0.01152]
[1766572172210,0.06875775,87057.0,87048.0,0.01152]
[1766572172794,0.18597579,87058.0,87048.0,0.01152]
[1766572173005,0.01148699,87055.0,87048.0,0.01152]
[1766572173207,0.06892565,87051.0,87048.0,0.01152]
[1766572173407,0.01148751,87051.0,87048.0,0.010971]
[1766572173833,0.06892567,87051.0,87048.0,0.010971]
[1766572174160,0.115071,87051.0,87045.0,0.00035641]
[1766572174327,0.18453819,87060.0,87048.0,0.01148791]
[1766572174509,0.12710633,87060.0,87049.0,0.01148778]
[1766572174717,0.11562,87060.0,87051.0,0.01148751]
[1766572174931,0.11944413,87064.0,87051.0,0.01148751]
[1766572175138,0.0114858,87064.0,87051.0,0.01148751]
[1766572175347,0.0114858,87064.0,87050.0,0.01148765]
[1766572175348,0.0114858,87064.0,87050.0,0.0689254]
[1766572175552,0.06891403,87065.0,87054.0,0.01148712]
[1766572175752,0.06891403,87065.0,87053.0,0.02300725]
[1766572175957,0.0114858,87064.0,87053.0,0.02300725]
[1766572176469,0.06891403,87065.0,87053.0,0.02300725]
[1766572176633,0.06891403,87065.0,87053.0,0.08044331]
[1766572176835,0.0114858,87064.0,87053.0,0.08044331]
[1766572178300,0.01152,87068.0,87053.0,0.02300725]
[1766572178491,0.00664335,87064.0,87063.0,0.01148593]
[1766572178883,0.13196,87074.0,87063.0,0.01148593]
[1766572179063,0.14344448,87074.0,87063.0,0.01148593]
[1766572179410,0.14344448,87074.0,87053.0,0.01152]
[1766572179411,0.12044,87072.0,87059.0,0.01148646]
[1766572179653,0.12044,87072.0,87063.0,0.06891525]
[1766572179853,0.13192474,87072.0,87061.0,0.01148619]
[1766572180059,0.12044,87072.0,87061.0,0.01148619]
[1766572180259,0.01148488,87071.0,87060.0,0.01148633]
[1766572180417,0.13192474,87072.0,87060.0,0.01148633]
[1766572180615,0.12044,87072.0,87061.0,0.01148619]
[1766572180818,0.12044,87072.0,87062.0,0.06891581]
[1766572181023,0.12044,87072.0,87063.0,0.01148593]
[1766572181225,0.12044,87072.0,87065.0,0.01148567]
[1766572181565,0.12044,87072.0,87063.0,0.01148593]
[1766572181566,0.12044,87072.0,87063.0,0.05742967]
[1766572181768,0.12044,87072.0,87062.0,0.01148606]
[1766572181910,0.12044,87072.0,87062.0,0.01152]
[1766572182750,0.14344448,87074.0,87063.0,0.01148593]
[1766572184153,0.01148461,87073.0,87062.0,0.08043633]
[1766572184354,0.22967968,87078.0,87062.0,0.08043633]
[1766572184355,0.12044,87080.0,87070.0,0.01148501]
[1766572184530,0.11944413,87078.0,87070.0,1e-08]
[1766572184736,4.13e-06,87078.0,87070.0,0.01148501]
[1766572184931,0.12055,87080.0,87070.0,1e-08]
[1766572185132,0.12055,87080.0,87070.0,0.01148502]
[1766572185335,0.12055,87080.0,87072.0,0.01148474]
[1766572185538,0.12055,87080.0,87073.0,0.01148461]
[1766572185539,0.01163,87080.0,87073.0,0.01148461]
[1766572186046,0.01163,87080.0,87075.0,0.05742165]
[1766572186248,0.01163,87080.0,87076.0,0.01148422]
[1766572186448,0.01163,87080.0,87076.0,0.04356204]
[1766572186656,0.00011,87080.0,87077.0,0.06890436]
[1766572187512,0.01148461,87073.0,87061.0,0.01152]
[1766572187733,0.12044,87072.0,87061.0,0.01187641]
[1766572188198,0.13192474,87072.0,87061.0,0.01187641]
[1766572188405,0.12044,87072.0,87061.0,0.01187641]
[1766572188610,0.13192474,87072.0,87061.0,0.01187641]
[1766572188817,0.01148501,87070.0,87061.0,0.01187641]
[1766572189020,0.13192474,87072.0,87061.0,0.01187641]
[1766572189237,0.12044,87072.0,87061.0,0.0233626]
[1766572189441,0.01148501,87070.0,87061.0,0.01187641]
[1766572189839,0.01148488,87071.0,87061.0,0.01187641]
[1766572190379,0.01148501,87070.0,87061.0,0.01187641]
[1766572190804,0.13192488,87071.0,87061.0,0.01187641]
[1766572191007,0.18934979,87071.0,87061.0,0.01187641]
[1766572191851,0.01148501,87070.0,87061.0,0.01187641]
[1766572192701,0.06891009,87070.0,87061.0,0.01187641]
[1766572193121,0.01148514,87069.0,87061.0,0.01187641]
[1766572193337,0.01148501,87070.0,87061.0,0.01187641]
[1766572193951,0.01148514,87069.0,87061.0,0.01187641]
[1766572194386,0.01148527,87068.0,87061.0,0.01187641]
[1766572194683,0.0114854,87067.0,87061.0,0.01187641]
[1766572195020,0.0114854,87067.0,87062.0,0.01152]
[1766572195021,0.06891388,87066.0,87062.0,0.01152]
[1766572195231,0.06891388,87066.0,87062.0,0.010971]
[1766572196048,0.01148567,87065.0,87062.0,0.010971]
[1766572197617,0.06891447,87065.0,87062.0,0.010971]
[1766572197854,0.06891491,87064.0,87061.0,0.00035641]
[1766572198064,0.05742972,87063.0,87061.0,0.00035641]
[1766572198212,0.12044,87064.0,87063.0,0.000549]
[1766572198413,0.01148501,87070.0,87063.0,0.000549]
[1766572198414,0.11446,87070.0,87063.0,0.000549]
[1766572198610,0.24117478,87088.0,87071.0,0.01148488]
[1766572198611,0.11446,87084.0,87071.0,0.01148488]
[1766572198833,0.11446,87084.0,87069.0,0.01148514]
[1766572198834,0.01152,87083.0,87070.0,0.01148501]
[1766572199057,0.01152,87083.0,87068.0,0.01148527]
[1766572199210,0.11446,87082.0,87072.0,0.01148474]
[1766572199412,0.11446,87082.0,87070.0,0.01148501]
[1766572199609,0.01148369,87080.0,87069.0,0.01148514]
[1766572199863,0.1833612,87082.0,87069.0,0.01148514]
[1766572200062,0.0574184,87081.0,87068.0,0.06891149]
[1766572200270,0.01148356,87081.0,87068.0,0.06891149]
[1766572200565,0.06890154,87081.0,87067.0,0.05742664]
[1766572200767,0.06890152,87081.0,87068.0,0.06891164]
[1766572200932,0.01148356,87081.0,87068.0,0.01148527]
[1766572201127,0.01148356,87081.0,87065.0,0.01148567]
[1766572201128,0.11446,87082.0,87073.0,0.01148461]
[1766572201329,0.11446,87082.0,87066.0,0.01148553]
[1766572201527,0.01148369,87080.0,87066.0,0.01148553]
[1766572201713,0.18336058,87082.0,87066.0,0.01148553]
[1766572202020,0.01148356,87081.0,87068.0,0.05742617]
[1766572202374,0.12594342,87082.0,87070.0,0.01148501]
[1766572202735,0.01148356,87081.0,87069.0,0.01148514]
[1766572202930,4.62e-06,87082.0,87069.0,0.01148514]
[1766572203132,4.62e-06,87082.0,87069.0,0.06891043]
[1766572203359,4.62e-06,87082.0,87074.0,0.01148448]
[1766572203555,0.01152,87083.0,87074.0,0.01148448]
[1766572203896,0.01152,87083.0,87073.0,0.06890744]
[1766572204102,0.02300329,87083.0,87071.0,0.01148488]
[1766572204307,0.08041994,87083.0,87071.0,0.01148488]
[1766572204464,0.01152,87083.0,87072.0,0.01148474]
[1766572204859,0.01152,87082.0,87073.0,0.01148461]
[1766572205066,0.12598,87082.0,87073.0,0.06890749]
[1766572205262,0.12598,87082.0,87070.0,0.06890996]
[1766572205662,0.12598,87082.0,87070.0,0.01148501]
[1766572205869,0.12598,87082.0,87070.0,0.06890988]
[1766572206067,0.12598,87082.0,87071.0,0.01148488]
[1766572206606,0.01148382,87079.0,87067.0,0.0230054]
[1766572206752,0.0574212,87076.0,87067.0,0.01152]
[1766572206951,0.01148422,87076.0,87067.0,0.00312434]
[1766572207151,0.01148422,87076.0,87067.0,0.00782663]
[1766572207404,0.01148408,87077.0,87067.0,0.00043989]
[1766572207633,0.11446,87078.0,87067.0,0.01152]
[1766572207791,0.00369335,87068.0,87067.0,0.06525348]
[1766572207955,0.00314435,87068.0,87067.0,0.06525348]
[1766572208364,0.00314435,87068.0,87067.0,0.00782663]
[1766572208806,0.00314435,87068.0,87067.0,0.06525366]
[1766572209961,0.09602511,87078.0,87071.0,0.01148488]
[1766572210167,0.09602511,87078.0,87075.0,0.06890598]
[1766572210372,0.09602511,87078.0,87075.0,0.01148435]
[1766572210537,0.01148263,87088.0,87075.0,0.01148435]
[1766572210538,0.01152,87080.0,87075.0,0.06890604]
[1766572211125,0.01152,87080.0,87072.0,0.05742352]
[1766572211443,0.01152,87080.0,87071.0,0.06890813]
[1766572212451,0.06890324,87079.0,87067.0,0.01931203]
[1766572212632,0.08042271,87080.0,87068.0,0.06891161]
[1766572212853,0.01148382,87079.0,87068.0,0.01148527]
[1766572213069,0.01148408,87077.0,87067.0,0.00782663]
[1766572213273,0.06890394,87078.0,87067.0,0.00782663]
[1766572213924,0.06890353,87079.0,87068.0,0.01148527]
[1766572214060,0.01148382,87079.0,87067.0,0.076739]
[1766572214459,0.01148382,87079.0,87068.0,0.01148527]
[1766572214713,0.01148448,87074.0,87067.0,0.00782663]
[1766572214918,0.06890725,87075.0,87067.0,0.00782663]
[1766572215127,0.01148448,87074.0,87067.0,0.00782663]
[1766572215524,0.06890725,87075.0,87067.0,0.00782663]
[1766572215698,0.01148435,87075.0,87067.0,0.00782663]
[1766572216301,0.06890544,87076.0,87067.0,0.00782663]
[1766572216511,0.01148408,87077.0,87067.0,0.00782663]
[1766572216853,0.01148395,87078.0,87067.0,0.00782663]
[1766572217000,0.12594382,87079.0,87067.0,0.01931203]
[1766572217198,0.18336344,87079.0,87067.0,0.01931203]
[1766572219241,0.18336344,87079.0,87068.0,0.01148527]
[1766572219824,0.11446,87079.0,87068.0,0.01148527]
[1766572220223,0.11446,87079.0,87068.0,0.06891114]
[1766572221001,0.11446,87079.0,87069.0,0.06891046]
[1766572221208,0.11446,87079.0,87068.0,0.06891114]
[1766572221410,0.11446,87079.0,87069.0,0.01148514]
[1766572223236,0.11446,87079.0,87069.0,0.06891068]
[1766572223556,0.01152,87082.0,87073.0,0.01148461]
[1766572223691,0.06889633,87088.0,87073.0,0.01148461]
[1766572223692,0.01152,87083.0,87074.0,0.05742194]
[1766572224130,0.08221895,87087.0,87073.0,0.06890725]
[1766572224131,0.06889794,87086.0,87073.0,0.06890725]
[1766572224333,0.01148316,87084.0,87072.0,0.06890845]
[1766572224545,0.11446,87089.0,87080.0,0.01148369]
[1766572224757,0.07572399,87099.0,87068.0,0.12863731]
[1766572224758,0.14894127,87099.0,87088.0,0.06889559]
[1766572225091,0.000549,87088.0,87083.0,0.06889968]
[1766572225417,0.12594171,87095.0,87083.0,0.01148329]
[1766572225638,0.11446,87095.0,87085.0,0.05741476]
[1766572225841,0.11446,87095.0,87085.0,0.05741512]
[1766572226063,0.11456679,87095.0,87085.0,0.06889815]
[1766572226672,0.00010679,87095.0,87088.0,0.05741314]
[1766572226884,0.36595319,87100.0,87084.0,0.22966088]
[1766572226885,0.01152,87094.0,87092.0,0.01148211]
[1766572227100,0.01152,87094.0,87090.0,0.01148237]
[1766572227101,0.01152484,87094.0,87091.0,0.01148224]
[1766572227281,0.01152484,87094.0,87089.0,0.06889452]
[1766572227511,0.01152484,87094.0,87089.0,0.05737452]
[1766572227662,0.01152484,87094.0,87090.0,0.01148237]
[1766572227869,4.84e-06,87094.0,87091.0,0.01148224]
[1766572228148,4.84e-06,87094.0,87090.0,0.01148237]
[1766572228339,4.84e-06,87094.0,87089.0,0.06889502]
[1766572228527,4.84e-06,87094.0,87090.0,0.01148237]
[1766572229598,4.84e-06,87094.0,87088.0,0.01148263]
[1766572229803,4.84e-06,87094.0,87087.0,0.06889621]
[1766572230009,4.84e-06,87094.0,87088.0,0.06889581]
[1766572230209,4.84e-06,87094.0,87085.0,0.01148303]
[1766572230404,4.84e-06,87095.0,87089.0,1e-08]
[1766572230963,4.84e-06,87095.0,87085.0,0.01148303]
[1766572231144,4.84e-06,87095.0,87085.0,0.06900432]
[1766572231344,4.84e-06,87095.0,87088.0,1e-08]
[1766572231827,4.84e-06,87095.0,87086.0,0.05741387]
[1766572232040,4.84e-06,87095.0,87086.0,0.06889677]
[1766572232965,4.84e-06,87095.0,87085.0,0.00010679]
[1766572233172,0.06888875,87097.0,87085.0,0.01158982]
[1766572233314,0.13571158,87096.0,87085.0,0.00010679]
[1766572233515,0.12419158,87096.0,87085.0,0.00010679]
[1766572233726,0.12423,87095.0,87083.0,0.0688996]
[1766572233940,0.1242995,87095.0,87082.0,0.01148342]
[1766572234136,0.13578121,87095.0,87083.0,0.01148329]
[1766572234365,0.1242995,87095.0,87084.0,0.01148316]
[1766572234767,0.1242995,87095.0,87083.0,0.06889921]
[1766572234966,0.13578121,87095.0,87083.0,0.01148329]
[1766572235339,0.13578121,87095.0,87083.0,0.06889977]
[1766572236080,0.13578121,87095.0,87083.0,0.01148329]
[1766572236258,0.13465237,87090.0,87079.0,0.01152]
[1766572236461,0.12317,87090.0,87079.0,0.0804228]
[1766572236766,0.12317,87090.0,87079.0,0.02300382]
[1766572237112,0.12317,87090.0,87079.0,0.08042239]
[1766572237751,0.02307121,87095.0,87079.0,0.08042239]
[1766572237752,6.95e-05,87095.0,87090.0,0.000549]
[1766572237929,0.01152,87094.0,87090.0,0.000549]
[1766572238262,0.01152,87094.0,87089.0,0.0114825]
[1766572238263,0.01152,87094.0,87088.0,0.06889534]
[1766572238465,0.01152,87094.0,87089.0,0.0114825]
[1766572238671,0.01152,87094.0,87088.0,0.06889534]
[1766572238875,0.01152,87094.0,87089.0,0.0114825]
[1766572239079,0.010971,87094.0,87089.0,0.06889502]
[1766572239230,0.0115205,87095.0,87089.0,0.06889502]
[1766572239433,0.01152,87096.0,87090.0,0.01148237]
[1766572239643,0.01152,87096.0,87090.0,0.06889377]
[1766572240025,0.01152,87096.0,87090.0,0.06889403]
[1766572240232,0.01152,87096.0,87090.0,0.01148237]
[1766572240407,0.01148079,87102.0,87090.0,0.01148237]
[1766572240662,0.01148079,87102.0,87090.0,0.06889411]
[1766572240840,0.01152,87101.0,87090.0,0.06889411]
[1766572241254,0.01152,87101.0,87091.0,0.01148224]
[1766572241461,0.06888376,87104.0,87091.0,0.01148224]
[1766572241668,0.06888376,87104.0,87093.0,0.06889139]
[1766572241669,5.2e-07,87104.0,87093.0,0.06889139]
[1766572241876,0.01152,87103.0,87094.0,0.06889061]
[1766572242051,0.13469,87103.0,87094.0,0.01148184]
[1766572242872,0.13469,87103.0,87095.0,0.01148171]
[1766572243495,0.13469,87103.0,87097.0,0.06888868]
[1766572243496,0.12317,87103.0,87097.0,0.06888868]
[1766572243904,0.12317,87103.0,87095.0,0.01148171]
[1766572244666,0.12317,87103.0,87096.0,0.01148158]
[1766572245205,0.12317,87103.0,87095.0,0.06889012]
[1766572245409,0.12317,87103.0,87095.0,0.01148171]
[1766572246033,0.12317,87103.0,87096.0,0.01148158]
[1766572246531,0.12317,87103.0,87096.0,0.06888945]
[1766572246732,0.01152,87106.0,87095.0,0.06888915]
[1766572246977,0.01152,87106.0,87094.0,0.02300184]
[1766572247276,0.01152,87106.0,87094.0,0.08041097]
[1766572247437,0.01152,87106.0,87094.0,0.02300184]
[1766572247774,0.01148039,87105.0,87094.0,0.01152]
[1766572248236,0.02300026,87106.0,87094.0,0.02300184]
[1766572248984,1.14e-06,87107.0,87094.0,0.01152]
[1766572249579,0.01148127,87107.0,87095.0,0.01148171]
[1766572249777,0.01148026,87106.0,87095.0,0.01148171]
[1766572250818,0.01148127,87107.0,87095.0,0.06889011]
[1766572250983,1.14e-06,87107.0,87096.0,0.01148158]
[1766572251901,1.14e-06,87107.0,87096.0,0.06888937]
[1766572252892,0.01148127,87107.0,87095.0,0.06889011]
[1766572253346,0.01148127,87107.0,87096.0,0.01148158]
[1766572253846,1.14e-06,87107.0,87096.0,0.01148158]
[1766572255036,0.01148127,87107.0,87095.0,0.06889011]
[1766572255378,1.14e-06,87107.0,87096.0,0.01148158]
[1766572255492,1.14e-06,87107.0,87098.0,0.01148131]
[1766572255692,1.14e-06,87107.0,87099.0,0.06888707]
[1766572255918,1.14e-06,87107.0,87099.0,0.01148118]
[1766572256558,1.14e-06,87107.0,87099.0,0.06888686]
[1766572256712,1.14e-06,87107.0,87101.0,0.01148092]
[1766572256917,1.14e-06,87107.0,87100.0,0.01148105]
[1766572256918,1.14e-06,87107.0,87103.0,0.01148066]
[1766572257114,1.14e-06,87107.0,87104.0,0.06888307]
[1766572257327,0.01147842,87120.0,87107.0,0.05740007]
[1766572257527,0.01147842,87120.0,87105.0,0.01148039]
[1766572257528,0.02299842,87120.0,87106.0,0.06888101]
[1766572257731,0.12317,87118.0,87107.0,0.06888065]
[1766572258051,0.14795211,87117.0,87107.0,0.06888028]
[1766572258265,0.13469,87117.0,87107.0,0.01148013]
[1766572258496,0.12317,87117.0,87107.0,0.06888043]
[1766572258661,0.12317,87117.0,87108.0,0.01148]
[1766572258873,0.75506225,87130.0,87104.0,0.01152]
[1766572258874,0.11969,87125.0,87111.0,0.0114796]
[1766572259192,0.01147828,87121.0,87109.0,0.01152]
[1766572259398,0.01152,87124.0,87109.0,0.010971]
[1766572259399,0.01147894,87116.0,87109.0,0.010971]
[1766572259563,0.06887488,87116.0,87109.0,0.010971]
[1766572259774,0.01147921,87114.0,87109.0,0.010971]
[1766572259980,0.06887484,87115.0,87109.0,0.010971]
[1766572260382,0.05739712,87113.0,87109.0,0.010971]
[1766572260826,0.01147907,87115.0,87109.0,0.010971]
[1766572261602,0.06887505,87115.0,87109.0,0.010971]
[1766572261826,0.01147947,87112.0,87109.0,0.010971]
[1766572262058,0.05739697,87113.0,87109.0,0.010971]
[1766572262344,0.05739787,87112.0,87109.0,0.010971]
[1766572262519,0.06887734,87112.0,87109.0,0.010971]
[1766572263452,0.06887809,87111.0,87108.0,0.01152]
[1766572263667,0.06887809,87111.0,87091.0,0.14011955]
[1766572263668,0.01148039,87105.0,87091.0,0.14011955]
[1766572263816,0.01148039,87105.0,87092.0,0.02300211]
[1766572264017,3.9e-07,87105.0,87093.0,0.01148197]
[1766572264334,0.13117078,87105.0,87093.0,0.01148197]
[1766572264538,0.11969039,87105.0,87092.0,0.0804121]
[1766572264715,0.11969039,87105.0,87094.0,0.01148184]
[1766572265099,0.08469039,87105.0,87094.0,0.01148184]
[1766572265359,0.01148013,87107.0,87095.0,0.06889025]
[1766572265798,0.01148013,87107.0,87096.0,0.01148158]
[1766572265989,0.18857008,87108.0,87096.0,0.01148158]
[1766572266489,0.11969,87108.0,87097.0,0.01148145]
[1766572266694,0.13117,87108.0,87098.0,0.01152]
[1766572267095,0.11969,87108.0,87098.0,0.01152]
[1766572267462,0.01148013,87107.0,87098.0,0.01152]
[1766572268281,0.18857008,87108.0,87098.0,0.01152]
[1766572268489,0.01148013,87107.0,87098.0,0.01152]
[1766572268693,0.05740137,87106.0,87098.0,0.01152]
[1766572268884,0.05740137,87106.0,87021.0,0.2467]
[1766572268885,0.11969,87098.0,87087.0,0.01148277]
[1766572269114,0.13117131,87098.0,87085.0,0.02300303]
[1766572269460,0.13117131,87098.0,87086.0,0.06889729]
[1766572269653,0.01148145,87097.0,87085.0,0.02300303]
[1766572269862,0.01148145,87097.0,87086.0,0.0114829]
[1766572270014,0.13117131,87098.0,87086.0,0.06896682]
[1766572270216,0.18857798,87098.0,87086.0,0.0115524]
[1766572270419,0.11969,87098.0,87088.0,0.01148263]
[1766572270622,0.11969,87098.0,87087.0,0.05741354]
[1766572270802,0.11969,87098.0,87086.0,0.06896674]
[1766572270988,0.11969,87098.0,87087.0,0.01148277]
[1766572271433,0.11969,87098.0,87088.0,0.01148263]
[1766572271613,0.11969,87098.0,87087.0,0.06889611]
[1766572271788,0.13117131,87098.0,87087.0,0.01148277]
[1766572271995,0.11969,87098.0,87088.0,0.01148263]
[1766572272206,0.11969,87098.0,87087.0,0.0688963]
[1766572272405,0.11969,87098.0,87087.0,0.01148277]
[1766572272609,0.11969,87098.0,87086.0,6.95e-05]
[1766572272812,0.11969,87098.0,87086.0,0.06896688]
[1766572273017,0.11969,87098.0,87087.0,0.06889656]
[1766572273213,0.11969,87098.0,87086.0,0.0115524]
[1766572273434,0.11969,87098.0,87087.0,0.01148277]
[1766572273634,0.11969,87098.0,87086.0,6.95e-05]
[1766572273635,0.05740725,87097.0,87086.0,6.95e-05]
[1766572273887,0.01148158,87096.0,87086.0,6.95e-05]
[1766572274147,0.0688887,87097.0,87086.0,0.0115524]
[1766572274148,0.01148145,87097.0,87086.0,0.0115524]
[1766572274319,0.01148171,87095.0,87086.0,6.95e-05]
[1766572274558,0.01148184,87094.0,87086.0,6.95e-05]
[1766572274759,0.06889029,87095.0,87086.0,6.95e-05]
[1766572274909,0.01148184,87094.0,87086.0,6.95e-05]
[1766572275254,0.01148171,87095.0,87086.0,6.95e-05]
[1766572275473,0.06000293,87097.0,87086.0,6.95e-05]
[1766572275711,0.06889129,87094.0,87086.0,6.95e-05]
[1766572275868,0.01148184,87094.0,87086.0,6.95e-05]
[1766572276073,0.01148197,87093.0,87086.0,6.95e-05]
[1766572276456,0.0688914,87094.0,87086.0,6.95e-05]
[1766572276655,0.01148184,87094.0,87086.0,6.95e-05]
[1766572277297,0.01148171,87095.0,87086.0,6.95e-05]
[1766572277496,0.01148158,87096.0,87086.0,6.95e-05]
[1766572277497,0.0688895,87096.0,87086.0,6.95e-05]
[1766572277952,0.01148158,87096.0,87086.0,6.95e-05]
[1766572278130,0.06888955,87096.0,87086.0,6.95e-05]
[1766572278373,0.06889004,87096.0,87086.0,6.95e-05]
[1766572279804,4.9e-06,87097.0,87096.0,0.001099]
[1766572279999,4.9e-06,87097.0,87090.0,0.01148237]
[1766572280200,4.9e-06,87097.0,87092.0,0.01152]
[1766572288727,4.9e-06,87097.0,87092.0,0.01126318]
[1766572293140,0.06888167,87106.0,87094.0,0.01148184]
[1766572293746,0.18315086,87107.0,87094.0,0.06889085]
[1766572293964,0.01148026,87106.0,87094.0,0.06889085]
[1766572294305,0.01148013,87107.0,87095.0,0.01148171]
[1766572294585,0.11427,87108.0,87095.0,0.01148171]
[1766572294782,0.11427,87108.0,87097.0,0.01148145]